fUSD/lending_fUSD_20251201
["ID","MTS","AMOUNT","RATE_DAILY","PERIOD"]
[395217013,1764549041950,-600.0,0.00015706,2]
[395217014,1764549041962,-150.0,0.00015707,2]
[395217015,1764549041972,-150.0,0.00015712,2]
[395217016,1764549041981,-150.0,0.00015712,2]
[395217017,1764549041990,-195.12886218,0.00015717,2]
[395217018,1764549042001,-269.46949558,0.00015717,2]
[395217019,1764549042010,-150.0,0.00015722,2]
[395217020,1764549042019,-150.0,0.00015723,2]
[395217021,1764549042028,-150.0,0.00015729,2]
[395217022,1764549042038,-195.12886218,0.00015734,2]
[395217023,1764549042048,-269.46949558,0.00015734,2]
[395217024,1764549042057,-150.0,0.00015737,2]
[395217025,1764549042066,-150.0,0.00015739,2]
[395217026,1764549042076,-150.0,0.00015741,2]
[395217027,1764549042085,-150.0,0.00015745,2]
[395217028,1764549042096,-195.12886218,0.00015751,2]
[395217029,1764549042104,-150.0,0.00015751,2]
[395217030,1764549042113,-269.46949558,0.00015751,2]
[395217031,1764549042125,-150.0,0.00015756,2]
[395217032,1764549042134,-150.0,0.0001576,2]
[395217033,1764549042144,-361.84,0.00015761,2]
[395217034,1764549042155,-500.0,0.00015762,2]
[395217035,1764549042166,-500.0,0.00015762,2]
[395217036,1764549042175,-500.0,0.00015762,2]
[395217037,1764549042186,-150.0,0.00015762,2]
[395217038,1764549042195,-150.0,0.00015765,2]
[395217039,1764549042204,-150.0,0.00015767,2]
[395217040,1764549042214,-195.12886218,0.00015768,2]
[395217041,1764549042223,-269.46949558,0.00015768,2]
[395217042,1764549042233,-150.0,0.00015773,2]
[395217044,1764549042244,-150.0,0.00015773,2]
[395217045,1764549042256,-150.0,0.00015778,2]
[395217046,1764549042267,-637.66314152,0.0001578,2]
[395217047,1764549042281,-195.12886218,0.00015785,2]
[395217048,1764549042292,-269.46949558,0.00015785,2]
[395217049,1764549042302,-150.0,0.00015787,2]
[395217050,1764549042311,-150.0,0.00015787,2]
[395217051,1764549042320,-150.0,0.00015792,2]
[395217052,1764549042330,-33341.18057242,0.00015792,2]
[395217053,1764549042340,-150.0,0.00015795,2]
[395217054,1764549042349,-150.0,0.00015797,2]
[395217055,1764549042358,-150.0,0.00015797,2]
[395217056,1764549042371,-195.12886218,0.00015802,2]
[395217057,1764549042380,-269.46949558,0.00015802,2]
[395217058,1764549042390,-150.0,0.0001581,2]
[395217059,1764549042400,-150.0,0.0001581,2]
[395217060,1764549042410,-150.0,0.0001581,2]
[395217061,1764549042420,-150.0,0.00015812,2]
[395217062,1764549042430,-150.0,0.00015815,2]
[395217063,1764549042439,-150.0,0.00015816,2]
[395217064,1764549042451,-150.0,0.00015817,2]
[395217065,1764549042462,-150.0,0.00015818,2]
[395217066,1764549042473,-195.12886218,0.0001582,2]
[395217067,1764549042483,-269.46949558,0.0001582,2]
[395217068,1764549042493,-151.0,0.00015834,2]
[395217069,1764549042506,-150.0,0.00015835,2]
[395217070,1764549042515,-195.12886218,0.00015837,2]
[395217071,1764549042525,-269.46949558,0.00015837,2]
[395217072,1764549042535,-150.0,0.00015837,2]
[395217073,1764549042545,-150.0,0.00015839,2]
[395217074,1764549042555,-150.0,0.00015845,2]
[395217076,1764549042564,-195.12886218,0.00015854,2]
[395217077,1764549042574,-269.46949558,0.00015854,2]
[395217078,1764549042583,-150.0,0.00015854,2]
[395217079,1764549042593,-150.0,0.00015854,2]
[395217080,1764549042602,-35002.51994264,0.00015855,2]
[395217081,1764549042611,-150.0,0.00015861,2]
[395217082,1764549042624,-150.0,0.00015862,2]
[395217084,1764549042634,-195.12886218,0.00015871,2]
[395217085,1764549042644,-269.46949558,0.00015871,2]
[395217086,1764549042653,-150.0,0.00015872,2]
[395217087,1764549042663,-150.0,0.00015873,2]
[395217088,1764549042673,-150.0,0.00015873,2]
[395217089,1764549042683,-150.0,0.00015876,2]
[395217091,1764549042692,-150.0,0.00015883,2]
[395217092,1764549042702,-150.0,0.00015887,2]
[395217093,1764549042714,-150.0,0.00015887,2]
[395217094,1764549042724,-195.12886218,0.00015888,2]
[395217095,1764549042734,-269.46949558,0.00015888,2]
[395217096,1764549042744,-150.0,0.00015892,2]
[395217097,1764549042758,-150.0,0.00015897,2]
[395217098,1764549042767,-150.0,0.00015898,2]
[395217099,1764549042778,-329.76785408,0.000159,2]
[395217100,1764549042788,-864.80956194,0.000159,2]
[395217101,1764549042799,-195.12886218,0.00015905,2]
[395217102,1764549042814,-150.0,0.00015905,2]
[395217104,1764549042824,-269.46949558,0.00015905,2]
[395217105,1764549042835,-150.0,0.00015911,2]
[395217106,1764549042844,-150.0,0.00015912,2]
[395217107,1764549042855,-195.12886218,0.00015923,2]
[395217108,1764549042865,-269.46949558,0.00015923,2]
[395217109,1764549042880,-150.0,0.00015925,2]
[395217110,1764549042890,-150.0,0.00015927,2]
[395217111,1764549042900,-150.0,0.00015929,2]
[395217112,1764549042910,-150.0,0.00015932,2]
[395217113,1764549042919,-150.0,0.00015937,2]
[395217114,1764549042930,-195.12886218,0.0001594,2]
[395217115,1764549042940,-269.46949558,0.0001594,2]
[395217116,1764549042950,-684.83,0.0001594,2]
[395217117,1764549042960,-160.82,0.0001594,2]
[395217118,1764549042970,-150.0,0.00015941,2]
[395217119,1764549042979,-150.0,0.00015941,2]
[395217120,1764549042989,-150.0,0.00015941,2]
[395217121,1764549042998,-150.0,0.00015948,2]
[395217122,1764549043007,-150.0,0.00015949,2]
[395217123,1764549043016,-700.74306003,0.0001595,2]
[395217124,1764549043026,-150.0,0.00015951,2]
[395217125,1764549043038,-195.12886218,0.00015957,2]
[395217126,1764549043048,-269.46949558,0.00015957,2]
[395217127,1764549043057,-160.82,0.00015957,2]
[395217128,1764549043066,-150.0,0.00015962,2]
[395217129,1764549043077,-150.0,0.00015967,2]
[395217130,1764549043086,-150.0,0.00015967,2]
[395217131,1764549043096,-150.0,0.00015967,2]
[395217132,1764549043105,-150.0,0.00015972,2]
[395217133,1764549043114,-279.89836834,0.00015973,2]
[395217134,1764549043127,-195.12886218,0.00015974,2]
[395217135,1764549043137,-269.46949558,0.00015974,2]
[395217136,1764549043146,-160.81,0.00015974,2]
[395217137,1764549043155,-33341.18057242,0.00015977,2]
[395217138,1764549043167,-150.0,0.00015978,2]
[395217139,1764549043176,-600.0,0.0001598,2]
[395217140,1764549043185,-150.0,0.00015985,2]
[395217141,1764549043194,-150.0,0.00015986,2]
[395217142,1764549043204,-150.0,0.00015987,2]
[395217143,1764549043214,-150.0,0.00015987,2]
[395217144,1764549043225,-150.0,0.00015991,2]
[395217145,1764549043234,-195.12886218,0.00015991,2]
[395217146,1764549043244,-269.46949558,0.00015991,2]
[395217147,1764549043254,-150.0,0.00015994,2]
[395217148,1764549043263,-501.71453986,0.00016,2]
[395217149,1764549043272,-23666.07387272,0.00016,2]
[395217150,1764549043282,-217943.91760979,0.00016,2]
[395217151,1764549043291,-272239.46415749,0.00016,4]
[395217152,1764549043300,-200.0,0.00016,2]
[395217153,1764549043310,-637.66314152,0.00016004,2]
[395217154,1764549043319,-150.0,0.00016004,2]
[395217156,1764549043329,-150.0,0.00016005,2]
[395217157,1764549043338,-150.0,0.00016006,2]
[395217158,1764549043348,-195.12886218,0.00016008,2]
[395217159,1764549043358,-269.46949558,0.00016008,2]
[395217160,1764549043370,-150.0,0.00016012,2]
[395217161,1764549043380,-150.0,0.00016016,2]
[395217162,1764549043389,-150.0,0.00016016,2]
[395217163,1764549043399,-150.0,0.00016024,2]
[395217164,1764549043409,-195.12886218,0.00016025,2]
[395217165,1764549043419,-269.46949558,0.00016025,2]
[395217166,1764549043429,-151.0,0.00016026,2]
[395217167,1764549043439,-150.0,0.00016028,2]
[395217169,1764549043449,-35002.51994264,0.00016029,2]
[395217170,1764549043459,-150.0,0.00016031,2]
[395217171,1764549043469,-150.0,0.00016037,2]
[395217172,1764549043478,-150.0,0.00016038,2]
[395217173,1764549043490,-195.12886218,0.00016043,2]
[395217174,1764549043502,-269.46949558,0.00016043,2]
[395217175,1764549043511,-150.0,0.00016043,2]
[395217176,1764549043521,-200.0,0.00016043,2]
[395217177,1764549043532,-200.0,0.00016043,2]
[395217178,1764549043541,-500.0,0.00016048,2]
[395217179,1764549043551,-500.0,0.00016048,2]
[395217180,1764549043560,-518.10982869,0.00016048,2]
[395217182,1764549043570,-553.63427716,0.00016048,2]
[395217184,1764549043582,-500.0,0.00016048,2]
[395217186,1764549043591,-530.31019318,0.00016048,2]
[395217187,1764549043600,-500.0,0.00016048,2]
[395217188,1764549043610,-500.0,0.00016048,2]
[395217189,1764549043621,-500.0,0.00016048,2]
[395217190,1764549043630,-150.0,0.00016049,2]
[395217191,1764549043639,-702.51,0.00016055,2]
[395217192,1764549043649,-702.51,0.00016055,2]
[395217193,1764549043659,-702.51,0.00016055,2]
[395217194,1764549043668,-702.51,0.00016055,2]
[395217195,1764549043678,-700.85,0.00016055,2]
[395217196,1764549043688,-150.0,0.00016057,2]
[395217197,1764549043700,-195.12886218,0.0001606,2]
[395217198,1764549043710,-150.0,0.0001606,2]
[395217199,1764549043720,-269.46949558,0.0001606,2]
[395217200,1764549043732,-150.0,0.00016061,2]
[395217201,1764549043741,-150.0,0.00016062,2]
[395217202,1764549043751,-150.0,0.00016072,2]
[395217203,1764549043761,-150.0,0.00016072,2]
[395217204,1764549043771,-150.0,0.00016072,2]
[395217205,1764549043783,-195.12886218,0.00016077,2]
[395217206,1764549043793,-269.46949558,0.00016077,2]
[395217207,1764549044075,-150.0,0.0001608,2]
[395217208,1764549044086,-150.0,0.00016082,2]
[395217209,1764549044096,-150.0,0.00016084,2]
[395217210,1764549044105,-150.0,0.00016087,2]
[395217211,1764549044116,-150.0,0.00016087,2]
[395217212,1764549044127,-408.39205811,0.0001609,2]
[395217213,1764549044138,-195.12886218,0.00016094,2]
[395217214,1764549044147,-269.46949558,0.00016094,2]
[395217215,1764549044157,-150.0,0.00016099,2]
[395217216,1764549044167,-150.0,0.00016104,2]
[395217217,1764549044177,-150.0,0.00016108,2]
[395217218,1764549044187,-150.0,0.0001611,2]
[395217219,1764549044197,-195.12886218,0.00016111,2]
[395217220,1764549044206,-269.46949558,0.00016111,2]
[395217221,1764549044215,-150.0,0.00016112,2]
[395217222,1764549044225,-150.0,0.00016115,2]
[395217223,1764549044235,-9999.99,0.00016116,2]
[395217224,1764549044245,-150.0,0.00016118,2]
[395217225,1764549044254,-150.0,0.00016126,2]
[395217226,1764549044264,-195.12886218,0.00016128,2]
[395217227,1764549044273,-269.46949558,0.00016128,2]
[395217228,1764549044283,-150.0,0.00016137,2]
[395217229,1764549044294,-150.0,0.00016137,2]
[395217230,1764549044305,-150.0,0.00016137,2]
[395217231,1764549044316,-150.0,0.00016137,2]
[395217232,1764549044325,-150.0,0.00016137,2]
[395217233,1764549044335,-150.0,0.00016137,2]
[395217234,1764549044346,-195.12886218,0.00016146,2]
[395217235,1764549044357,-269.46949558,0.00016146,2]
[395217236,1764549044369,-150.0,0.00016148,2]
[395217237,1764549044379,-4203.158933,0.00016149,2]
[395217238,1764549044388,-300.0,0.00016149,2]
[395217239,1764549044398,-151.0,0.00016149,2]
[395217240,1764549044407,-8000.0,0.00016149,2]
[395217241,1764549044417,-151.0,0.00016149,2]
[395217242,1764549044427,-151.0,0.00016149,2]
[395217243,1764549044438,-533.88981491,0.00016149,2]
[395217244,1764549044448,-8000.0,0.00016149,2]
[395217245,1764549044458,-151.0,0.00016149,2]
[395217246,1764549044469,-8000.0,0.00016149,2]
[395217247,1764549044481,-151.0,0.00016149,2]
[395217248,1764549044493,-8000.0,0.00016149,2]
[395217249,1764549044509,-151.0,0.00016149,2]
[395217250,1764549044518,-8000.0,0.00016149,2]
[395217251,1764549044528,-151.0,0.00016149,2]
[395217252,1764549044539,-8000.0,0.00016149,2]
[395217253,1764549044549,-151.0,0.00016149,2]
[395217254,1764549044560,-8000.0,0.00016149,2]
[395217255,1764549044571,-151.0,0.00016149,2]
[395217256,1764549044585,-8000.0,0.00016149,2]
[395217257,1764549044595,-151.0,0.00016149,2]
[395217258,1764549044605,-8000.0,0.00016149,2]
[395217259,1764549044616,-151.0,0.00016149,2]
[395217260,1764549044631,-8000.0,0.00016149,2]
[395217261,1764549044641,-8000.0,0.00016149,2]
[395217262,1764549044651,-1437.42744146,0.00016149,2]
[395217263,1764549044662,-1000.0,0.00016149,2]
[395217264,1764549044672,-1000.0,0.00016149,2]
[395217265,1764549044683,-1000.0,0.00016149,2]
[395217266,1764549044694,-1000.0,0.00016149,2]
[395217267,1764549044704,-151.0,0.00016149,2]
[395217268,1764549044716,-1000.0,0.00016149,2]
[395217269,1764549044725,-151.0,0.00016149,2]
[395217270,1764549044735,-1000.0,0.00016149,2]
[395217271,1764549044745,-500.0,0.00016149,2]
[395217272,1764549044754,-151.0,0.00016149,2]
[395217273,1764549044764,-151.0,0.00016149,2]
[395217274,1764549044774,-1000.0,0.00016149,2]
[395217275,1764549044783,-500.0,0.00016149,2]
[395217276,1764549044793,-151.0,0.00016149,2]
[395217277,1764549044802,-1000.0,0.00016149,2]
[395217278,1764549044812,-500.0,0.00016149,2]
[395217279,1764549044821,-322.6107,0.00016149,2]
[395217280,1764549044831,-1000.0,0.00016149,2]
[395217281,1764549044842,-500.0,0.00016149,2]
[395217282,1764549044852,-500.0,0.00016149,2]
[395217283,1764549044862,-500.0,0.00016149,2]
[395217284,1764549044876,-1000.0,0.00016149,2]
[395217285,1764549044885,-500.0,0.00016149,2]
[395217286,1764549044895,-1000.0,0.00016149,2]
[395217287,1764549044907,-151.0,0.00016149,2]
[395217288,1764549044917,-500.0,0.00016149,2]
[395217289,1764549044927,-1000.0,0.00016149,2]
[395217290,1764549044936,-151.0,0.00016149,2]
[395217291,1764549044946,-500.0,0.00016149,2]
[395217292,1764549044955,-1000.0,0.00016149,2]
[395217293,1764549044965,-151.0,0.00016149,2]
[395217294,1764549044974,-500.0,0.00016149,2]
[395217295,1764549044984,-151.0,0.00016149,2]
[395217296,1764549044993,-500.0,0.00016149,2]
[395217297,1764549045003,-250.0,0.00016149,2]
[395217298,1764549045013,-151.0,0.00016149,2]
[395217299,1764549045023,-500.0,0.00016149,2]
[395217300,1764549045033,-250.0,0.00016149,2]
[395217301,1764549045042,-151.0,0.00016149,2]
[395217302,1764549045053,-500.0,0.00016149,2]
[395217303,1764549045062,-250.0,0.00016149,2]
[395217304,1764549045071,-151.0,0.00016149,2]
[395217305,1764549045082,-151.0,0.00016149,2]
[395217306,1764549045092,-250.0,0.00016149,2]
[395217307,1764549045103,-151.0,0.00016149,2]
[395217308,1764549045113,-250.0,0.00016149,2]
[395217309,1764549045126,-151.0,0.00016149,2]
[395217310,1764549045136,-250.0,0.00016149,2]
[395217311,1764549045146,-151.0,0.00016149,2]
[395217312,1764549045155,-500.0,0.00016149,2]
[395217313,1764549045165,-250.0,0.00016149,2]
[395217314,1764549045177,-151.0,0.00016149,2]
[395217315,1764549045187,-500.0,0.00016149,2]
[395217316,1764549045197,-250.0,0.00016149,2]
[395217317,1764549045207,-151.0,0.00016149,2]
[395217318,1764549045216,-250.0,0.00016149,2]
[395217319,1764549045227,-500.0,0.00016149,2]
[395217320,1764549045237,-151.0,0.00016149,2]
[395217321,1764549045247,-250.0,0.00016149,2]
[395217322,1764549045257,-500.0,0.00016149,2]
[395217323,1764549045267,-250.0,0.00016149,2]
[395217324,1764549045276,-497.73015309,0.00016149,2]
[395217325,1764549045286,-1000.0,0.00016149,2]
[395217326,1764549045296,-250.0,0.00016149,2]
[395217328,1764549045305,-1000.0,0.00016149,2]
[395217329,1764549045314,-250.0,0.00016149,2]
[395217330,1764549045324,-250.0,0.00016149,2]
[395217331,1764549045333,-1000.0,0.00016149,2]
[395217332,1764549045342,-250.0,0.00016149,2]
[395217333,1764549045352,-1000.0,0.00016149,2]
[395217334,1764549045362,-620.0,0.00016149,2]
[395217336,1764549045375,-160.0,0.00016149,2]
[395217337,1764549045385,-250.0,0.00016149,2]
[395217338,1764549045394,-1000.0,0.00016149,2]
[395217339,1764549045404,-257.91778498,0.00016149,2]
[395217340,1764549045413,-250.0,0.00016149,2]
[395217341,1764549045423,-1000.0,0.00016149,2]
[395217342,1764549045433,-250.0,0.00016149,2]
[395217344,1764549045443,-1000.0,0.00016149,2]
[395217346,1764549045453,-250.0,0.00016149,2]
[395217348,1764549045462,-1000.0,0.00016149,2]
[395217350,1764549045472,-250.0,0.00016149,2]
[395217352,1764549045482,-1000.0,0.00016149,2]
[395217354,1764549045496,-500.0,0.00016149,2]
[395217356,1764549045506,-1000.0,0.00016149,2]
[395217358,1764549045516,-250.0,0.00016149,2]
[395217360,1764549045526,-234.66589441,0.00016149,2]
[395217362,1764549045536,-1000.0,0.00016149,2]
[395217365,1764549045546,-250.0,0.00016149,2]
[395217366,1764549045556,-1000.0,0.00016149,2]
[395217367,1764549045566,-250.0,0.00016149,2]
[395217368,1764549045578,-194.72792766,0.00016149,2]
[395217369,1764549045588,-250.0,0.00016149,2]
[395217370,1764549045600,-1000.0,0.00016149,2]
[395217371,1764549045611,-250.0,0.00016149,2]
[395217372,1764549045626,-194.72792766,0.00016149,2]
[395217373,1764549045637,-250.0,0.00016149,2]
[395217374,1764549045647,-250.0,0.00016149,2]
[395217375,1764549045658,-767.61793263,0.00016149,2]
[395217376,1764549045668,-250.0,0.00016149,2]
[395217377,1764549045680,-250.0,0.00016149,2]
[395217378,1764549045692,-250.0,0.00016149,2]
[395217379,1764549045702,-250.0,0.00016149,2]
[395217380,1764549045712,-250.0,0.00016149,2]
[395217381,1764549045724,-250.0,0.00016149,2]
[395217382,1764549045734,-578.20924308,0.00016149,2]
[395217383,1764549045747,-250.0,0.00016149,2]
[395217384,1764549045757,-250.0,0.00016149,2]
[395217385,1764549045767,-250.0,0.00016149,2]
[395217386,1764549045777,-3000.0,0.00016149,2]
[395217387,1764549045789,-250.0,0.00016149,2]
[395217388,1764549045800,-250.0,0.00016149,2]
[395217389,1764549045810,-250.0,0.00016149,2]
[395217390,1764549045820,-500.0,0.00016149,2]
[395217391,1764549045830,-500.0,0.00016149,2]
[395217392,1764549045840,-500.0,0.00016149,2]
[395217393,1764549045850,-500.0,0.00016149,2]
[395217394,1764549045860,-500.0,0.00016149,2]
[395217395,1764549045874,-500.0,0.00016149,2]
[395217396,1764549045883,-500.0,0.00016149,2]
[395217397,1764549045893,-500.0,0.00016149,2]
[395217398,1764549045903,-500.0,0.00016149,2]
[395217399,1764549045913,-500.0,0.00016149,2]
[395217400,1764549045923,-500.0,0.00016149,2]
[395217401,1764549045932,-500.0,0.00016149,2]
[395217402,1764549045942,-500.0,0.00016149,2]
[395217404,1764549045952,-150.0,0.00016156,2]
[395217406,1764549045961,-150.0,0.00016159,2]
[395217407,1764549045971,-33341.18057242,0.00016161,2]
[395217408,1764549045980,-150.0,0.00016162,2]
[395217409,1764549045990,-195.12886218,0.00016163,2]
[395217410,1764549045999,-269.46949558,0.00016163,2]
[395217411,1764549046009,-150.0,0.00016164,2]
[395217412,1764549046018,-151.0,0.00016165,2]
[395217413,1764549046027,-150.0,0.00016166,2]
[395217414,1764549046037,-150.0,0.0001617,2]
[395217415,1764549046047,-251.0,0.00016174,2]
[395217416,1764549046058,-150.0,0.00016175,2]
[395217417,1764549046068,-260.43529292,0.00016177,2]
[395217418,1764549046077,-195.12886218,0.0001618,2]
[395217419,1764549046087,-269.46949558,0.0001618,2]
[395217420,1764549046097,-150.0,0.00016187,2]
[395217421,1764549046106,-150.0,0.00016187,2]
[395217422,1764549046116,-700.74306003,0.00016188,2]
[395217423,1764549046129,-150.0,0.0001619,2]
[395217424,1764549046138,-177.88,0.00016192,2]
[395217425,1764549046147,-150.0,0.00016192,2]
[395217426,1764549046157,-177.88,0.00016192,2]
[395217427,1764549046166,-177.88,0.00016192,2]
[395217428,1764549046176,-552.02,0.00016192,2]
[395217429,1764549046186,-552.02,0.00016192,2]
[395217430,1764549046196,-177.88,0.00016192,2]
[395217431,1764549046205,-150.0,0.00016192,2]
[395217432,1764549046215,-150.0,0.00016194,2]
[395217433,1764549046225,-195.12886218,0.00016197,2]
[395217434,1764549046234,-269.46949558,0.00016197,2]
[395217435,1764549046244,-10127.3728011,0.000162,5]
[395217436,1764549046255,-150.0,0.00016202,2]
[395217437,1764549046264,-150.0,0.00016202,2]
[395217438,1764549046274,-150.0,0.00016202,2]
[395217439,1764549046283,-35002.51994264,0.00016203,2]
[395217440,1764549046295,-166.66,0.00016207,2]
[395217441,1764549046304,-150.0,0.00016212,2]
[395217442,1764549046315,-150.0,0.00016212,2]
[395217443,1764549046324,-684.83,0.00016214,2]
[395217444,1764549046334,-195.12886218,0.00016214,2]
[395217445,1764549046344,-150.0,0.00016214,2]
[395217446,1764549046354,-269.46949558,0.00016214,2]
[395217447,1764549046364,-150.0,0.00016217,2]
[395217448,1764549046375,-251.0,0.00016221,2]
[395217449,1764549046386,-150.0,0.00016225,2]
[395217450,1764549046398,-637.66314152,0.00016228,2]
[395217451,1764549046414,-195.12886218,0.00016231,2]
[395217452,1764549046425,-269.46949558,0.00016231,2]
[395217453,1764549046436,-150.0,0.00016231,2]
[395217454,1764549046447,-150.0,0.00016236,2]
[395217455,1764549046460,-150.0,0.00016237,2]
[395217456,1764549046470,-150.0,0.00016243,2]
[395217457,1764549046480,-150.0,0.00016246,2]
[395217458,1764549046492,-195.12886218,0.00016249,2]
[395217459,1764549046506,-269.46949558,0.00016249,2]
[395217460,1764549046518,-150.0,0.0001625,2]
[395217461,1764549046527,-408.39205809,0.00016252,2]
[395217462,1764549046537,-600.0,0.00016254,2]
[395217463,1764549046551,-150.0,0.00016258,2]
[395217464,1764549046560,-150.0,0.00016258,2]
[395217465,1764549046571,-150.0,0.00016262,2]
[395217466,1764549046659,-195.12886218,0.00016266,2]
[395217467,1764549046669,-269.46949558,0.00016266,2]
[395217468,1764549046678,-150.0,0.00016268,2]
[395217469,1764549046688,-251.0,0.00016268,2]
[395217470,1764549046700,-150.0,0.00016269,2]
[395217471,1764549046709,-150.0,0.0001627,2]
[395217472,1764549046719,-150.0,0.0001628,2]
[395217473,1764549046729,-195.12886218,0.00016283,2]
[395217474,1764549046739,-269.46949558,0.00016283,2]
[395217475,1764549046749,-150.0,0.00016283,2]
[395217476,1764549046758,-150.0,0.00016287,2]
[395217477,1764549046768,-150.0,0.00016287,2]
[395217478,1764549046778,-150.0,0.00016288,2]
[395217479,1764549046787,-150.0,0.00016289,2]
[395217480,1764549046797,-150.0,0.00016296,2]
[395217481,1764549046806,-195.12886218,0.000163,2]
[395217482,1764549046816,-269.46949558,0.000163,2]
[395217483,1764549046825,-150.0,0.00016302,2]
[395217484,1764549046834,-150.0,0.00016307,2]
[395217485,1764549046844,-150.0,0.00016307,2]
[395217486,1764549046854,-150.0,0.00016307,2]
[395217487,1764549046863,-150.0,0.00016312,2]
[395217488,1764549046874,-195.12886218,0.00016317,2]
[395217489,1764549046888,-269.46949558,0.00016317,2]
[395217490,1764549046898,-150.0,0.00016323,2]
[395217491,1764549046908,-150.0,0.00016324,2]
[395217492,1764549046918,-150.0,0.00016326,2]
[395217493,1764549046931,-150.0,0.00016333,2]
[395217494,1764549046940,-150.0,0.00016333,2]
[395217495,1764549046949,-150.0,0.00016333,2]
[395217496,1764549046958,-195.12886218,0.00016334,2]
[395217497,1764549046968,-269.46949558,0.00016334,2]
[395217498,1764549046978,-150.0,0.00016337,2]
[395217499,1764549046988,-200.0,0.0001634,2]
[395217500,1764549046997,-150.0,0.00016342,2]
[395217501,1764549047008,-150.0,0.00016345,2]
[395217502,1764549047017,-33341.18057242,0.00016346,2]
[395217503,1764549047026,-150.0,0.00016347,2]
[395217504,1764549047036,-150.0,0.00016349,2]
[395217505,1764549047045,-195.12886218,0.00016351,2]
[395217506,1764549047054,-269.46949558,0.00016351,2]
[395217507,1764549047066,-150.0,0.00016362,2]
[395217508,1764549047075,-150.0,0.00016363,2]
[395217509,1764549047084,-195.12886218,0.00016369,2]
[395217510,1764549047093,-150.0,0.00016369,2]
[395217511,1764549047104,-269.46949558,0.00016369,2]
[395217512,1764549047113,-150.0,0.00016376,2]
[395217513,1764549047125,-150.0,0.00016377,2]
[395217514,1764549047134,-35002.51994264,0.00016377,2]
[395217515,1764549047143,-150.0,0.00016382,2]
[395217516,1764549047152,-195.12886218,0.00016386,2]
[395217517,1764549047161,-269.46949558,0.00016386,2]
[395217518,1764549047170,-150.0,0.00016387,2]
[395217519,1764549047180,-150.0,0.00016387,2]
[395217520,1764549047190,-150.0,0.00016391,2]
[395217521,1764549047200,-150.0,0.00016398,2]
[395217522,1764549047211,-2996.72,0.000164,2]
[395217523,1764549047220,-150.0,0.00016401,2]
[395217524,1764549047229,-150.0,0.00016401,2]
[395217525,1764549047238,-150.0,0.00016402,2]
[395217526,1764549047248,-195.12886218,0.00016403,2]
[395217527,1764549047261,-269.46949558,0.00016403,2]
[395217528,1764549047270,-150.0,0.00016412,2]
[395217529,1764549047280,-150.0,0.00016413,2]
[395217530,1764549047290,-408.39205809,0.00016414,2]
[395217531,1764549047300,-195.12886218,0.0001642,2]
[395217532,1764549047310,-269.46949558,0.0001642,2]
[395217533,1764549047320,-150.0,0.0001642,2]
[395217534,1764549047330,-150.0,0.0001642,2]
[395217535,1764549047339,-700.74306003,0.00016425,2]
[395217536,1764549047348,-150.0,0.00016429,2]
[395217537,1764549047358,-150.0,0.00016435,2]
[395217538,1764549047367,-150.0,0.00016437,2]